[Event "American Cup Blitz 2024"]
[Site "Saint Louis"]
[Date "2024.03.21"]
[Round "7.2"]
[White "Oparin, Grigoriy"]
[Black "Sevian, Samuel"]
[Result "1/2-1/2"]
[ECO "E04"]
[WhiteElo "2671"]
[BlackElo "2697"]
[Annotator "TA"]
[PlyCount "77"]
[EventDate "2024.03.21"]
[EventType "swiss"]
[EventCountry "USA"]
[SourceTitle "playchess.com"]
[Source "ChessBase"]
[SourceQuality "1"]
[TimeControl "180+2"]

{[%evp 10,77,0,-1,-18,-25,52,44,84,70,65,79,89,57,63,60,64,24,20,16,31,36,40,35,44,37,43,28,85,31,18,17,22,25,44,36,48,57,105,105,132,103,104,51,89,19,19,19,19,19,84,72,72,72,73,72,72,73,73,65,65,65,74,65,65,0,74,0,74,0]} 1. d4 {[%emt 0:00:01]} Nf6 {[%emt 0:00:01]} 2. c4 {[%emt 0:00:01]} e6 {[%emt 0:00:01]} 3. Nf3 {[%emt 0:00:01]} d5 {[%emt 0:00:01]} 4. g3 {[%emt 0:00:01]} Bb4+ {[%emt 0:00:07]} 5. Nbd2 {[%emt 0:00:01][%cal Bb1d2,Bd2c4,Bc4e5][%mdl 32]} dxc4 {[%emt 0:00:04]} 6. Bg2 {[%emt 0:00:06]} b5 {[%emt 0:00:38] Lässt Qa4 nicht zu} 7. O-O {[%emt 0:00:02][%cal Od2c4]} Bb7 {[%emt 0:00:02] [#]} (7... O-O $11) 8. Nxc4 $1 $14 {[%emt 0:00:03]} O-O {[%emt 0:00:03] [#] Weiß steht etwas besser.} (8... bxc4 9. Qa4+) 9. Nce5 {[%emt 0:00:06]} Be7 {[%emt 0:00:09]} 10. Bg5 {[%emt 0:00:12]} Nbd7 {[%emt 0:00:19]} 11. Nxd7 {[%emt 0:00:53]} Nxd7 {[%emt 0:00:02]} 12. Bxe7 {[%emt 0:00:02]} Qxe7 {[%emt 0:00:01]} 13. Qc2 {[%emt 0:00:01]} c5 {[%emt 0:00:13] [#]} 14. Ng5 $1 {[%emt 0:00:11]} Qxg5 {[%emt 0:00:01]} 15. Bxb7 {[%emt 0:00:01]} Rad8 {[%emt 0:00:00]} 16. h4 {[%emt 0:00:08]} Qe7 {[%emt 0:00:09]} 17. dxc5 {[%emt 0:00:05]} Nxc5 {[%emt 0:00:14]} 18. Bf3 {[%emt 0:00:02]} Nd7 {[%emt 0:00:22]} (18... Rc8 $11 {bleibt in der Remisbreite.}) 19. a4 {[%emt 0:00:39] Weiß steht aktiver.} ({Vorzuziehen ist} 19. Qc7 $16 {[%cal Of3c6] Droht Bc6! und aus.} Qf6 20. Bc6 (20. Qxa7 Ne5 $11)) 19... bxa4 {[%emt 0:00:09]} 20. Qxa4 {[%emt 0:00:01]} Ne5 {[%emt 0:00:03]} 21. Qxa7 {[%emt 0:00:05]} Nxf3+ {[%emt 0:00:04]} 22. exf3 {[%emt 0:00:01]} Qf6 {[%emt 0:00:00]} 23. Qa3 {[%emt 0:00:10]} Rb8 {[%emt 0:00:10]} (23... Rd2 $14) 24. b4 $16 {[%emt 0:00:05]} Rb5 {[%emt 0:00:03]} 25. Rab1 {[%emt 0:00:03]} Rfb8 {[%emt 0:00:02]} 26. Rb3 {[%emt 0:00:02]} (26. Rfc1 $16) 26... h5 {[%emt 0:00:04]} 27. f4 {[%emt 0:00:04]} ({Besser ist} 27. Re1 $16) 27... Qd4 $11 {[%emt 0:00:02]} 28. Rfb1 {[%emt 0:00:04]} g6 {[%emt 0:00:01]} 29. Qb2 {[%emt 0:00:04]} Rd5 {[%emt 0:00:26]} (29... Qd6 $1 $11) 30. Qxd4 {[%emt 0:00:02]} Rxd4 $16 {[%emt 0:00:01][%mdl 4096] Endspiel. KRR-KRR} 31. b5 {[%emt 0:00:02]} Rb6 {[%emt 0:00:01]} 32. Kf1 {[%emt 0:00:11]} Rd5 {[%emt 0:00:01]} 33. Ke2 {[%emt 0:00:01]} Kg7 {[%emt 0:00:00]} 34. Ke3 {[%emt 0:00:01]} Kf6 {[%emt 0:00:01]} 35. Rb4 {[%emt 0:00:00]} Ke7 {[%emt 0:00:03]} 36. R1b3 {[%emt 0:00:01]} Kf6 {[%emt 0:00:02]} 37. Rb1 {[%emt 0:00:09]} Ke7 {[%emt 0:00:01]} 38. R1b3 {[%emt 0:00:02]} Kf6 $1 {[%emt 0:00:01]} 39. Rb1 {[%emt 0:00:02] Gewichteter Fehlerwert: Weiß=0.14 (sehr präzise) /Schwarz=0.16 (sehr präzise) .  Fehler:       	Weiß=4     	Schwarz=4     Ungenau:       	Weiß=2     	Schwarz=2     OK:         	Weiß=14    	Schwarz=10    Bester:       	Weiß=1     	Schwarz=2     Stark:        	---       	Schwarz=1     Brilliant:      	Weiß=1     	---} (39. Rb2 $16) 1/2-1/2

[Event "American Cup Blitz 2024"]
[Site "Saint Louis"]
[Date "2024.03.21"]
[Round "7.3"]
[White "Dominguez Perez, Leinier"]
[Black "Durarbayli, Vasif"]
[Result "0-1"]
[ECO "C11"]
[WhiteElo "2749"]
[BlackElo "2627"]
[Annotator "TA"]
[PlyCount "74"]
[EventDate "2024.03.21"]
[EventType "swiss"]
[EventCountry "USA"]
[SourceTitle "playchess.com"]
[Source "ChessBase"]
[SourceQuality "1"]
[TimeControl "180+2"]

{[%evp 20,74,8,6,21,0,28,5,2,24,9,11,19,9,49,32,54,35,44,39,45,0,0,0,3,4,38,0,1,-250,-250,-592,-599,-568,-562,-1722,-2164,-1528,-1877,-29988,-29989,-29989,-1478,-29988,-29989,-29989,-29990,-29990,-29991,-29991,-29992,-29992,-29993,-29996,-29996,-29997,-2661]} 1. e4 {[%emt 0:00:01][%cal Be2e4,Be4e5][%mdl 32]} e6 {[%emt 0:00:00]} 2. d4 {[%emt 0:00:01]} d5 {[%emt 0:00:00]} 3. Nc3 {[%emt 0:00:01]} Nf6 {[%emt 0:00:01]} 4. e5 {[%emt 0:00:01]} Nfd7 {[%emt 0:00:01]} 5. f4 {[%emt 0:00:01]} c5 {[%emt 0:00:00]} 6. Nf3 {[%emt 0:00:01]} Nc6 {[%emt 0:00:01]} 7. Be3 {[%emt 0:00:01]} cxd4 {[%emt 0:00:01]} 8. Nxd4 {[%emt 0:00:01]} Qb6 {[%emt 0:00:01]} 9. Qd2 {[%emt 0:00:05]} Qxb2 {[%emt 0:00:06]} 10. Rb1 {[%emt 0:00:01]} Qa3 {[%emt 0:00:02]} 11. Bb5 {[%emt 0:00:01]} Nxd4 {[%emt 0:00:01]} 12. Bxd4 {[%emt 0:00:01][%cal Of4f5] Hoping for f5!} a6 {[%emt 0:00:04]} 13. Bxd7+ {[%emt 0:00:04]} Bxd7 {[%emt 0:00:01] The position is equal.} 14. Rb3 {[%emt 0:00:01]} Qe7 {[%emt 0:00:01]} (14... Qa5 $2 15. Bb6 $18 (15. Rxb7 Bb4 $17) (15. Rxb7 Bb4 $17)) 15. Rxb7 {[%emt 0:00:02]} Qd8 {[%emt 0:00:01]} 16. O-O {[%emt 0:00:07]} Qc8 {[%emt 0:00:01]} 17. Rfb1 {[%emt 0:00:26]} Bc5 {[%emt 0:00:05] [#]} 18. f5 $1 {[%emt 0:00:15][%cal Bf4f5,Bf5f6][%mdl 32] And now Bxc5 would win.} Bb5 {[%emt 0:00:36]} (18... Bxd4+ 19. Qxd4) 19. Nxb5 {[%emt 0:00:25]} axb5 {[%emt 0:00:01]} 20. Bxc5 {[%emt 0:00:24]} Qxc5+ {[%emt 0:00:01]} (20... Qxb7 21. Qg5 $14) 21. Kh1 {[%emt 0:00:00]} O-O {[%emt 0:00:29]} 22. f6 {[%emt 0:00:07] White threatens Qg5 and mate.} Rfb8 {[%emt 0:00:28]} (22... Rxa2 23. Qg5 g6 24. Qh6 (24. R1xb5 $2 Qxb5 25. h3 Qf1+ 26. Kh2 Rxc2 $19) (24. R1xb5 $2 Qxb5 25. h3 Qf1+ 26. Kh2 Rxc2 $19)) 23. Re7 {[%emt 0:00:15]} h6 {[%emt 0:00:22] Prevents Qg5.} 24. Qf4 $2 {[%emt 0:00:37][%mdl 8192] This costs White the game.} (24. fxg7 $1 $11 {and White stays safe.} Kxg7 (24... Qxe7 $2 25. Qxh6 f5 26. exf6 $18) 25. Rd7 Rxa2 26. Qf4) 24... Qxc2 $40 {[%emt 0:00:26][%mdl 128] Black wants a kill.} (24... Rxa2 $2 25. fxg7 Qxe7 26. Qxh6 $18) 25. Rf1 {[%emt 0:00:03]} (25. Rc1 {is tougher.} Qg6 (25... Qxa2 26. fxg7) 26. h3) 25... Rxa2 {[%emt 0:00:25]} (25... Qxa2 26. fxg7) 26. Qg3 {[%emt 0:00:27][%csl Gf6][%cal Rg3g7]} g6 {[%emt 0:00:09]} 27. h3 {[%emt 0:00:10]} b4 {[%emt 0:00:03] White must now prevent ...b3.} 28. Rg1 {[%emt 0:00:11]} b3 {[%emt 0:00:11] ( -> ...b2)} 29. Qh4 {[%emt 0:00:01]} Qd2 {[%emt 0:00:02]} 30. Qg4 {[%emt 0:00:07]} Qg5 {[%emt 0:00:04]} (30... b2 $142 31. h4 Ra1 (31... b1=R $2 32. Re8+ Rxe8 33. Rxb1 $19) 32. h5 Rxg1+ (32... b1=B 33. hxg6 Bxg6 34. Rxa1 $15) 33. Kxg1 b1=Q+ (33... b1=B $2 34. Kh2 $19) 34. Kh2 Qe3 35. Re8+ Rxe8 36. Qf3 Qbg1+ (36... Qxe5+ {is a self mate.} 37. g3 Rc8 38. Kg2 Rc2+ 39. Qf2 Rxf2+ 40. Kxf2 Qbe1+ 41. Kg2 Q5xg3#) 37. Kh3 Qxf3+ (37... gxh5 38. Qxe3 Qxe3+ 39. Kh2 Ra8 40. g3 Ra2+ 41. Kh3 Qxe5 42. Kh4 Rh2#) 38. gxf3 g5 (38... gxh5 39. f4 Rb8 40. f5 Rb3+ 41. Kh4 Qh2#) 39. f4 gxf4 40. Kh4 Qg3#) 31. Qd4 {[%emt 0:00:03]} b2 {[%emt 0:00:07] Black mates.} 32. Rb1 {[%emt 0:00:00]} Qc1+ {[%emt 0:00:04]} 33. Kh2 {[%emt 0:00:03]} Qxb1 {[%emt 0:00:02]} 34. Rxf7 {[%emt 0:00:01]} Kxf7 {[%emt 0:00:06]} 35. Qc5 {[%emt 0:00:01] [#]} Qh1+ $3 {[%emt 0:00:05]} 36. Kg3 {[%emt 0:00:02]} (36. Kxh1 b1=Q+) 36... Qe1+ {[%emt 0:00:01]} ({Not} 36... b1=R 37. Qe7+ Kg8 38. Qg7#) 37. Kg4 {[%emt 0:00:02]} Qe4+ {[%emt 0:00:02] Weighted Error Value: White=1.09/Black=0.37.  Loses game:     	White=1     	---        Mistake:       	White=1     	---        Inaccurate:     	White=3     	Black=3      OK:         	White=8     	Black=7      Best:        	---       	Black=1      Brilliant:      	White=1     	---} (37... Ra4+ $142 38. Qd4 Rxd4+ 39. Kf3 Rb3#) 0-1

[Event "American Cup Blitz 2024"]
[Site "Saint Louis"]
[Date "2024.03.21"]
[Round "7.4"]
[White "Aronian, Levon"]
[Black "Naroditsky, Daniel"]
[Result "0-1"]
[ECO "B04"]
[WhiteElo "2722"]
[BlackElo "2619"]
[Annotator "TA"]
[PlyCount "68"]
[EventDate "2024.03.21"]
[EventType "swiss"]
[EventCountry "USA"]
[SourceTitle "playchess.com"]
[Source "ChessBase"]
[SourceQuality "1"]
[TimeControl "180+2"]

{[%evp 10,68,46,38,39,43,41,40,45,48,57,43,45,44,47,42,44,36,38,16,28,22,55,66,52,42,55,64,66,75,60,31,26,8,14,14,14,0,0,-95,-87,-84,-89,-123,-127,-214,-234,-207,-167,-202,-204,-169,-176,-182,-179,-195,-142,-143,-68,-1075,-1030]} 1. e4 {[%emt 0:00:02]} Nf6 {[%emt 0:00:01]} 2. e5 {[%emt 0:00:01]} Nd5 {[%emt 0:00:01]} 3. d4 {[%emt 0:00:01]} d6 {[%emt 0:00:00]} 4. Nf3 {[%emt 0:00:01]} dxe5 {[%emt 0:00:02]} 5. Nxe5 {[%emt 0:00:01]} c6 {[%emt 0:00:01]} 6. Be2 {[%emt 0:00:03]} Bf5 {[%emt 0:00:05]} 7. O-O {[%emt 0:00:02]} Nd7 {[%emt 0:00:01]} 8. Nf3 {[%emt 0:00:01]} e6 {[%emt 0:00:01] White is slightly better.} 9. c4 {[%emt 0:00:29]} N5f6 {[%emt 0:00:02]} 10. Nc3 {[%emt 0:00:03]} Bd6 {[%emt 0:00:04]} 11. Nh4 {[%emt 0:00:05]} Bg6 {[%emt 0:00:24]} 12. g3 {[%emt 0:00:01]} O-O {[%emt 0:00:08]} 13. Nxg6 {[%emt 0:00:04]} hxg6 {[%emt 0:00:01]} 14. Be3 {[%emt 0:00:01]} e5 {[%emt 0:00:21]} 15. d5 {[%emt 0:00:02]} Bc5 {[%emt 0:00:01]} 16. Bxc5 {[%emt 0:00:14]} Nxc5 {[%emt 0:00:02]} 17. b4 {[%emt 0:00:01]} Nce4 {[%emt 0:00:32]} 18. Nxe4 Nxe4 {[%emt 0:00:02]} 19. dxc6 {[%emt 0:00:02]} bxc6 {[%emt 0:00:12]} 20. Qc2 {[%emt 0:00:18]} Ng5 {[%emt 0:00:01]} 21. c5 {[%emt 0:00:19]} a5 {[%emt 0:00:20]} 22. Rad1 {[%emt 0:00:40]} Qe7 {[%emt 0:00:10]} 23. Rd6 {[%emt 0:00:23]} axb4 {[%emt 0:00:10]} 24. Bc4 {[%emt 0:00:00]} (24. h4 $11 {remains equal.} Ne6 25. Bg4) 24... e4 $17 {[%emt 0:00:13]} 25. Kg2 {[%emt 0:00:01]} Ra5 {[%emt 0:00:16]} 26. Bb3 {[%emt 0:00:13][%cal Oh2h4]} Qe5 {[%emt 0:00:06]} 27. h4 {[%emt 0:00:19]} (27. Rxc6 $2 {is the wrong capture.} Qf5 28. f4 Qh3+ (28... exf3+ $2 29. Kh1 $19) 29. Kf2 Qxh2+ 30. Ke1 Qxg3+ 31. Kd1 Qh3 $19) (27. Rxg6 $17 Rxc5 28. Rxg5 Qxg5 29. Qxe4) 27... Rxc5 $19 {[%emt 0:00:04]} (27... Qxc5 $2 {perishes.} 28. Qxc5 (28. Rxg6 $2 Qxc2 29. Bxc2 fxg6 $19) 28... Rxc5 29. hxg5 $18) 28. Qd1 {[%emt 0:00:01] [#]} e3 $1 {[%emt 0:00:07] ...e2 is the strong threat.} 29. Qd4 {[%emt 0:00:09]} (29. Rd8 Ne4) 29... Ne4 {[%emt 0:00:19]} 30. Qxe5 Rxe5 {[%emt 0:00:01]} 31. Rxc6 {[%emt 0:00:13]} Nxf2 {[%emt 0:00:03]} 32. Re1 {[%emt 0:00:09]} Nd3 {[%emt 0:00:06]} (32... Kh7 $19 {Strongly threatening ...Nd3.} 33. Rc4 f5) 33. Re2 $17 {[%emt 0:00:01][%cal Oc6c7]} Rfe8 {[%emt 0:00:01]} (33... Nc5 $17 {And now ...Rd8 would win.} 34. Rd6 Nxb3 35. axb3 Re4) 34. Rxg6 $2 {[%emt 0:00:02][%mdl 8192] [#]} (34. Rc7 $15 Rf5 35. Bc4) 34... Nc1 {[%emt 0:00:01] Weighted Error Value: White=0.37/Black=0.12 (very precise) .  Loses game:     	White=1     	---        Mistake:       	White=2     	Black=2      Inaccurate:     	White=2     	Black=1      OK:         	White=12    	Black=14     Best:        	White=2     	Black=2} 0-1

[Event "American Cup Blitz 2024"]
[Site "Saint Louis"]
[Date "2024.03.21"]
[Round "7.5"]
[White "Quesada Perez, Yuniesky"]
[Black "Shankland, Sam"]
[Result "0-1"]
[ECO "B50"]
[WhiteElo "2591"]
[BlackElo "2674"]
[Annotator "TA"]
[PlyCount "114"]
[EventDate "2024.03.21"]
[EventType "swiss"]
[EventCountry "USA"]
[SourceTitle "playchess.com"]
[Source "ChessBase"]
[SourceQuality "1"]
[TimeControl "180+2"]

{[%evp 46,114,-22,-24,-7,-55,-62,-100,-10,-11,-15,-16,-5,-12,-14,-22,0,-17,-14,-118,-74,-98,-114,-106,-129,-140,-139,-153,-145,-148,-104,-122,-75,-85,-33,-117,-10,-251,-234,-429,-444,-663,-645,-898,-883,-845,-846,-974,-919,-955,-904,-723,-668,-1089,-1021,-927,-830,-1107,-1050,-5298,-4810,-29988,-29989,-29992,-29993,-29993,-29994,-29994,-1288,-29989,-29990]} 1. e4 {[%emt 0:00:02]} c5 {[%emt 0:00:00]} 2. Nf3 {[%emt 0:00:01]} d6 {[%emt 0:00:01]} 3. Bc4 {[%emt 0:00:05]} Nf6 {[%emt 0:00:02]} 4. d3 {[%emt 0:00:01]} e6 {[%emt 0:00:01]} 5. c3 {[%emt 0:00:01]} Be7 {[%emt 0:00:02]} 6. Bb3 {[%emt 0:00:04] B50: Sicilian: 2...d6, Miscellaneous.} O-O {[%emt 0:00:02]} 7. O-O {[%emt 0:00:01]} b6 {[%emt 0:00:02]} 8. Re1 {[%emt 0:00:02]} Bb7 {[%emt 0:00:03]} 9. Nbd2 {[%emt 0:00:02]} Nbd7 {[%emt 0:00:02]} 10. Nf1 {[%emt 0:00:04]} b5 $5 {[%emt 0:00:11][%mdl 4] Leaves trodden paths.} 11. Bc2 {[%emt 0:00:03]} a5 {[%emt 0:00:11]} 12. a4 {[%emt 0:00:14]} b4 {[%emt 0:00:02]} 13. Ng3 $146 {[%emt 0:00:02]} ({Predecessor:} 13. Ne3 Qc7 14. Nc4 d5 15. exd5 Nxd5 16. Bd2 Bf6 17. Ne3 Nxe3 18. Rxe3 Nb6 19. Bb3 {0-1 Karthik,R (2302)-Korobov,A (2664) Titled Tuesday intern op 18th Apr Early blitz 2023 (2)}) 13... Qc7 {[%emt 0:00:11]} 14. d4 {[%emt 0:00:08]} cxd4 {[%emt 0:00:12]} 15. cxd4 {[%emt 0:00:01]} Rfc8 {[%emt 0:00:01]} 16. Bd3 {[%emt 0:00:08]} Ba6 {[%emt 0:00:03]} 17. Bxa6 {[%emt 0:00:43]} Rxa6 {[%emt 0:00:01]} 18. d5 {[%emt 0:00:03]} exd5 {[%emt 0:00:24]} 19. exd5 {[%emt 0:00:04]} Bf8 {[%emt 0:00:01]} 20. Nf5 {[%emt 0:00:27]} Qc2 {[%emt 0:00:13]} 21. Qxc2 {[%emt 0:00:15]} Rxc2 {[%emt 0:00:01]} 22. N3d4 {[%emt 0:00:05]} Rc5 {[%emt 0:00:17]} 23. Ne3 {[%emt 0:00:41]} Ne5 {[%emt 0:00:24]} (23... Nxd5 $6 24. Nb3 $11) (23... g6 $17) 24. Rd1 {[%emt 0:00:04]} g6 {[%emt 0:00:07]} (24... Nxd5 25. Nb3 Nf4 26. Nxc5 dxc5 27. b3 $16) 25. Nb3 {[%emt 0:00:03]} (25. Nb5 $11) 25... Rc8 $15 {[%emt 0:00:02]} 26. f4 {[%emt 0:00:05]} Nc4 {[%emt 0:00:06]} (26... Ned7 $1 $17 27. Bd2 Nb6) 27. Nxc4 $1 $11 {[%emt 0:00:02]} Rxc4 {[%emt 0:00:01]} 28. Be3 {[%emt 0:00:02]} Bg7 {[%emt 0:00:04]} 29. Bd4 {[%emt 0:00:06]} Ra8 {[%emt 0:00:06]} (29... Nxd5 $2 30. Bxg7 Ne3 31. Re1 $18 (31. Rd3 Nc2 $14)) 30. g3 {[%emt 0:00:02]} Rcc8 {[%emt 0:00:19]} (30... Nxd5 $2 31. Bxg7 Ne3 32. Bf6 (32. Rd3 Nc2 $16) 32... Nxd1 33. Rxd1 $18) 31. Rd2 {[%emt 0:00:05]} Ne4 {[%emt 0:00:02]} (31... Nxd5 $2 {loses.} 32. Bxg7 Nxf4 33. Bh6 $18 (33. gxf4 Kxg7 34. Kf2 Rc4 $18)) 32. Rd3 {[%emt 0:00:02]} (32. Re2 $11 Nc5 33. Bxc5 dxc5 34. Rd1) 32... Rc2 {[%emt 0:00:11]} 33. Bxg7 {[%emt 0:00:02]} Kxg7 {[%emt 0:00:02]} 34. Rb1 {[%emt 0:00:01]} Nc5 {[%emt 0:00:17]} 35. Nxc5 {[%emt 0:00:05]} Rxc5 {[%emt 0:00:01]} ({Of course not} 35... dxc5 $6 36. b3 $11) 36. Rd2 {[%emt 0:00:02]} Re8 {[%emt 0:00:02]} 37. Kf2 {[%emt 0:00:02]} Re4 {[%emt 0:00:02]} 38. Kf3 {[%emt 0:00:03]} f5 {[%emt 0:00:02]} ({Better is} 38... Re7 $1 39. Rf1 h5) 39. Rbd1 $17 {[%emt 0:00:04] [#]} Kf6 {[%emt 0:00:02]} (39... Kh6 $1 $17 40. Rf2 b3) 40. h3 {[%emt 0:00:03] [#]} (40. Re2 $15) 40... h5 {[%emt 0:00:02]} ({Black should play} 40... g5 $1 $17 {[%cal Rg5f4] Strongly threatening ...gxf4.} 41. Re2 Rxe2 42. Kxe2 gxf4 43. gxf4 Rc2+ 44. Kd3 Rxb2) 41. g4 $2 {[%emt 0:00:01]} (41. h4 $1 $11) 41... Rcc4 {[%emt 0:00:03]} 42. gxh5 $2 {[%emt 0:00:02]} (42. g5+ Kf7 43. b3 Rxf4+ 44. Kg3) 42... Rxf4+ $19 {[%emt 0:00:01]} 43. Kg3 {[%emt 0:00:01]} (43. Kg2 $142 gxh5 44. Rb1) 43... gxh5 $19 {[%emt 0:00:02]} 44. Re1 {[%emt 0:00:01]} h4+ {[%emt 0:00:01]} 45. Kg2 {[%emt 0:00:01]} Rfe4 {[%emt 0:00:02]} 46. Rf1 {[%emt 0:00:09]} Ke5 {[%emt 0:00:01]} 47. Kh2 {[%emt 0:00:03]} Rcd4 {[%emt 0:00:04]} 48. Rc2 {[%emt 0:00:03]} Rxd5 {[%emt 0:00:03]} 49. Rg1 {[%emt 0:00:04]} Rd3 {[%emt 0:00:03]} 50. Rg8 {[%emt 0:00:01]} d5 {[%emt 0:00:05]} 51. Re8+ {[%emt 0:00:02]} Kd4 {[%emt 0:00:01]} 52. Ra8 {[%emt 0:00:02]} Ree3 {[%emt 0:00:05]} 53. Rxa5 {[%emt 0:00:02]} Rxh3+ {[%emt 0:00:02]} 54. Kg2 {[%emt 0:00:02]} Rdg3+ {[%emt 0:00:00]} 55. Kf1 {[%emt 0:00:02]} Rh1+ {[%emt 0:00:01]} 56. Ke2 {[%emt 0:00:03]} Rg2+ {[%emt 0:00:02]} 57. Kf3 {[%emt 0:00:02]} Rxc2 {[%emt 0:00:01]} 0-1

[Event "American Cup Blitz 2024"]
[Site "Saint Louis"]
[Date "2024.03.21"]
[Round "7.6"]
[White "Akobian, Varuzhan"]
[Black "Antipov, Mikhail Al."]
[Result "1/2-1/2"]
[ECO "D14"]
[WhiteElo "2571"]
[BlackElo "2573"]
[Annotator "TA"]
[PlyCount "60"]
[EventDate "2024.03.21"]
[EventType "swiss"]
[EventCountry "USA"]
[SourceTitle "playchess.com"]
[Source "ChessBase"]
[SourceQuality "1"]
[TimeControl "180+2"]

{[%evp 25,60,0,0,0,0,-3,0,0,0,0,0,0,0,0,0,0,0,0,0,0,0,0,0,0,0,0,0,0,0,-7,0,0,0,-12,0,0,0]} 1. d4 {[%emt 0:00:03]} Nf6 {[%emt 0:00:01]} 2. Nf3 {[%emt 0:00:04]} d5 {[%emt 0:00:01]} 3. c4 {[%emt 0:00:01]} c6 {[%emt 0:00:01]} 4. cxd5 {[%emt 0:00:03]} cxd5 {[%emt 0:00:01]} 5. Nc3 {[%emt 0:00:03]} Nc6 {[%emt 0:00:01]} 6. Bf4 {[%emt 0:00:05]} Bf5 {[%emt 0:00:01]} 7. e3 {[%emt 0:00:05]} e6 {[%emt 0:00:02]} 8. Bd3 {[%emt 0:00:04]} Bxd3 {[%emt 0:00:01]} 9. Qxd3 {[%emt 0:00:02]} Bd6 {[%emt 0:00:01]} 10. Bxd6 {[%emt 0:00:04]} Qxd6 {[%emt 0:00:02]} 11. O-O {[%emt 0:00:03]} O-O {[%emt 0:00:02]} 12. Rfc1 {[%emt 0:00:03]} Rfc8 {[%emt 0:00:01]} 13. h3 {[%emt 0:00:06]} h6 {[%emt 0:00:02] Die Stellung ist ausgeglichen.} 14. a3 {[%emt 0:00:17]} Na5 {[%emt 0:00:15]} 15. Nd2 {[%emt 0:00:03] Lässt Nb3 nicht zu} Qd8 {[%emt 0:00:12]} 16. Ne2 {[%emt 0:00:18]} Rxc1+ {[%emt 0:00:27]} 17. Rxc1 {[%emt 0:00:01]} Rc8 {[%emt 0:00:01]} 18. Rxc8 {[%emt 0:00:09]} Qxc8 {[%emt 0:00:01]} 19. Qc3 {[%emt 0:00:10]} Qxc3 {[%emt 0:00:03]} 20. Nxc3 $11 {[%emt 0:00:01][%mdl 4096] Endspiel. KNN-KNN} Ne8 {[%emt 0:00:26]} 21. Kf1 {[%emt 0:00:08]} Nd6 {[%emt 0:00:02]} 22. b3 {[%emt 0:00:14]} Kf8 {[%emt 0:00:05]} 23. Ke2 {[%emt 0:00:01]} Ke7 {[%emt 0:00:19]} 24. Kd3 {[%emt 0:00:01]} f6 {[%emt 0:00:13]} 25. Kc2 {[%emt 0:00:09]} Nc6 {[%emt 0:00:12]} 26. Kd3 {[%emt 0:00:01]} Kd7 {[%emt 0:00:04]} 27. Kc2 {[%emt 0:00:06]} Ke7 {[%emt 0:00:03]} 28. Kd3 {[%emt 0:00:01]} Kd7 {[%emt 0:00:01]} 29. Kc2 {[%emt 0:00:02]} Ke7 {[%emt 0:00:01]} 30. Kd3 {[%emt 0:00:49]} Kd7 {[%emt 0:00:05] Hier war wenig los.   Gewichteter Fehlerwert: Weiß=0.02 (makellos) /Schwarz=0.01 (makellos) .  OK:         	Weiß=5     	Schwarz=7} 1/2-1/2